lending/lending_fUSD_20240604
["ID","MTS","AMOUNT","RATE_DAILY","PERIOD"]
[328523307,1717486243609,-2891.88552023,0.00029695,2]
[328523309,1717486243619,-1677.89545698,0.00029695,2]
[328523311,1717486243628,-8123.8100749,0.00029713,2]
[328523314,1717486243637,-161.92662217,0.00029725,2]
[328523316,1717486243649,-1454.89,0.0002975,6]
[328523318,1717486243658,-611.66,0.0002975,6]
[328523320,1717486243672,-3616.18,0.0002975,6]
[328523322,1717486243682,-500.0,0.0002975,6]
[328523324,1717486243691,-500.0,0.0002975,6]
[328523326,1717486243700,-661.74,0.0002975,6]
[328523328,1717486243710,-847.87,0.0002975,6]
[328523330,1717486243719,-500.0,0.0002975,6]
[328523332,1717486243728,-500.0,0.0002975,6]
[328523334,1717486243738,-500.0,0.0002975,6]
[328523336,1717486243747,-3252.92,0.0002975,6]
[328523338,1717486243757,-1207.69,0.0002975,6]
[328523340,1717486243767,-500.0,0.0002975,6]
[328523342,1717486243776,-875.82,0.0002975,6]
[328523344,1717486243786,-500.0,0.0002975,6]
[328523346,1717486243795,-1623.27,0.0002975,6]
[328523348,1717486243805,-552.41,0.0002975,6]
[328523350,1717486243814,-8123.8100749,0.00029751,2]
[328523352,1717486243823,-150.0,0.00029757,2]
[328523354,1717486243832,-154.7818876,0.00029765,2]
[328523356,1717486243842,-153.7783359,0.00029776,2]
[328523358,1717486243851,-152.64120797,0.0002978,2]
[328523360,1717486243860,-8123.8100749,0.00029788,2]
[328523362,1717486243869,-150.10886997,0.00029793,2]
[328523364,1717486243878,-153.22128215,0.00029794,2]
[328523366,1717486243887,-161.39504215,0.000298,2]
[328523368,1717486243898,-3399.017464,0.000298,2]
[328523370,1717486243907,-153.92904354,0.00029801,2]
[328523372,1717486243918,-150.0,0.00029824,2]
[328523374,1717486243927,-8123.8100749,0.00029825,2]
[328523376,1717486243936,-5800.0,0.00029832,2]
[328523378,1717486243946,-151.0,0.00029837,2]
[328523380,1717486243956,-152.64120797,0.00029838,2]
[328523382,1717486243965,-5800.0,0.00029841,2]
[328523384,1717486243975,-296.38316015,0.00029842,2]
[328523386,1717486243984,-150.0,0.00029846,2]
[328523388,1717486243994,-5800.0,0.00029849,2]
[328523390,1717486244004,-150.0,0.00029854,2]
[328523392,1717486244013,-5800.0,0.00029858,2]
[328523394,1717486244023,-8123.8100749,0.00029863,2]
[328523396,1717486244031,-364.0,0.00029863,15]
[328523398,1717486244041,-5800.0,0.00029866,2]
[328523400,1717486244050,-158.5,0.0002987,15]
[328523402,1717486244059,-152.36243134,0.00029871,2]
[328523404,1717486244068,-151.39581909,0.00029872,2]
[328523406,1717486244077,-364.0,0.00029873,15]
[328523408,1717486244087,-161.92662217,0.00029873,2]
[328523410,1717486244096,-5800.0,0.00029875,2]
[328523412,1717486244105,-194.6313974,0.00029879,2]
[328523414,1717486244115,-364.0,0.0002988,15]
[328523416,1717486244124,-150.5,0.0002988,15]
[328523418,1717486244132,-5800.0,0.00029883,2]
[328523420,1717486244141,-364.0,0.00029883,15]
[328523422,1717486244152,-150.0,0.00029883,2]
[328523424,1717486244161,-152.36243134,0.00029883,2]
[328523426,1717486244170,-364.0,0.0002989,15]
[328523428,1717486244180,-2610.27911609,0.0002989,2]
[328523430,1717486244189,-5800.0,0.00029892,2]
[328523432,1717486244199,-500.0,0.00029899,6]
[328523434,1717486244208,-500.0,0.00029899,2]
[328523436,1717486244218,-500.0,0.00029899,6]
[328523438,1717486244227,-500.0,0.00029899,6]
[328523440,1717486244236,-687.5,0.00029899,6]
[328523442,1717486244246,-904.55,0.00029899,6]
[328523444,1717486244255,-500.0,0.00029899,6]
[328523446,1717486244265,-3455.44,0.00029899,6]
[328523449,1717486244274,-1877.48699355,0.000299,2]
[328523450,1717486244283,-1634.88175126,0.000299,2]
[328523452,1717486244293,-158.24222128,0.000299,2]
[328523454,1717486244303,-252.30673706,0.000299,7]
[328523456,1717486244313,-252.30673706,0.000299,7]
[328523458,1717486244322,-252.30673706,0.000299,7]
[328523460,1717486244331,-252.30673706,0.000299,7]
[328523462,1717486244341,-252.30673706,0.000299,7]
[328523464,1717486244350,-252.30673706,0.000299,7]
[328523466,1717486244359,-252.30673706,0.000299,7]
[328523468,1717486244368,-252.30673706,0.000299,7]
[328523470,1717486244377,-252.30673706,0.000299,7]
[328523472,1717486244386,-252.30673706,0.000299,7]
[328523474,1717486244396,-252.30673706,0.000299,7]
[328523476,1717486244405,-252.30673706,0.000299,7]
[328523478,1717486244414,-252.30673706,0.000299,7]
[328523480,1717486244422,-252.30673706,0.000299,7]
[328523482,1717486244431,-252.30673706,0.000299,7]
[328523484,1717486244440,-252.30673706,0.000299,7]
[328523486,1717486244449,-252.30673706,0.000299,7]
[328523488,1717486244458,-252.30673706,0.000299,7]
[328523490,1717486244468,-252.30673706,0.000299,7]
[328523492,1717486244478,-252.8,0.000299,7]
[328523494,1717486244487,-1009.30194825,0.000299,7]
[328523496,1717486244497,-1009.30194825,0.000299,7]
[328523498,1717486244506,-1009.30194825,0.000299,7]
[328523500,1717486244515,-1009.30194825,0.000299,7]
[328523502,1717486244525,-1009.30194825,0.000299,7]
[328523504,1717486244534,-1009.30194825,0.000299,7]
[328523506,1717486244543,-1009.30194825,0.000299,7]
[328523508,1717486244553,-1009.30194825,0.000299,7]
[328523510,1717486244561,-1009.30194825,0.000299,7]
[328523512,1717486244571,-1009.30194825,0.000299,7]
[328523514,1717486244580,-1009.30194825,0.000299,7]
[328523516,1717486244589,-1009.30194825,0.000299,7]
[328523519,1717486244603,-1009.30194825,0.000299,7]
[328523521,1717486244612,-1009.30194825,0.000299,7]
[328523523,1717486244622,-1009.30194825,0.000299,7]
[328523524,1717486244631,-1009.30194825,0.000299,7]
[328523525,1717486244640,-1009.30194825,0.000299,7]
[328523526,1717486244650,-1009.30194825,0.000299,7]
[328523527,1717486244660,-1009.30194825,0.000299,7]
[328523528,1717486244672,-1009.8,0.000299,7]
[328523529,1717486244681,-158.15190299,0.000299,7]
[328523530,1717486244690,-158.15190299,0.000299,7]
[328523531,1717486244699,-158.15190299,0.000299,7]
[328523532,1717486244708,-158.15190299,0.000299,7]
[328523533,1717486244718,-158.15190299,0.000299,7]
[328523534,1717486244730,-158.15190299,0.000299,7]
[328523536,1717486244740,-158.15190299,0.000299,7]
[328523538,1717486244753,-158.15190299,0.000299,7]
[328523540,1717486244762,-158.15190299,0.000299,7]
[328523542,1717486244771,-158.15190299,0.000299,7]
[328523544,1717486244781,-158.15190299,0.000299,7]
[328523546,1717486244790,-158.15190299,0.000299,7]
[328523548,1717486244799,-158.65,0.000299,7]
[328523550,1717486244808,-411.26994776,0.000299,7]
[328523552,1717486244817,-411.26994776,0.000299,7]
[328523554,1717486244826,-411.26994776,0.000299,7]
[328523556,1717486244835,-411.26994776,0.000299,7]
[328523558,1717486244844,-411.26994776,0.000299,7]
[328523560,1717486244854,-411.26994776,0.000299,7]
[328523562,1717486244863,-411.26994776,0.000299,7]
[328523564,1717486244872,-411.26994776,0.000299,7]
[328523566,1717486244881,-411.26994776,0.000299,7]
[328523568,1717486244890,-411.26994776,0.000299,7]
[328523570,1717486244900,-411.26994776,0.000299,7]
[328523572,1717486244909,-411.26994776,0.000299,7]
[328523574,1717486244917,-411.26994776,0.000299,7]
[328523576,1717486244926,-411.26994776,0.000299,7]
[328523578,1717486244935,-411.26994776,0.000299,7]
[328523580,1717486244945,-411.26994776,0.000299,7]
[328523582,1717486244954,-411.26994776,0.000299,7]
[328523584,1717486244963,-411.26994776,0.000299,7]
[328523586,1717486244972,-411.26994776,0.000299,7]
[328523588,1717486244982,-411.76,0.000299,7]
[328523590,1717486244991,-4478.1195228,0.000299,7]
[328523592,1717486245000,-384.24635951,0.000299,2]
[328523594,1717486245010,-1528.97290063,0.000299,2]
[328523596,1717486245019,-3447.98075773,0.000299,2]
[328523598,1717486245028,-5800.0,0.000299,2]
[328523600,1717486245037,-8123.8100749,0.000299,2]
[328523602,1717486245046,-2126.47280957,0.000299,2]
[328523604,1717486245055,-198.90654413,0.000299,2]
[328523606,1717486245064,-185.60814589,0.000299,7]
[328523608,1717486245073,-186.1,0.000299,7]
[328523610,1717486245082,-165.15168524,0.000299,7]
[328523612,1717486245092,-165.15168524,0.000299,7]
[328523614,1717486245101,-165.15168524,0.000299,7]
[328523616,1717486245111,-165.15168524,0.000299,7]
[328523618,1717486245120,-165.15168524,0.000299,7]
[328523620,1717486245129,-165.15168524,0.000299,7]
[328523622,1717486245138,-165.15168524,0.000299,7]
[328523624,1717486245148,-165.15168524,0.000299,7]
[328523626,1717486245157,-165.65,0.000299,7]
[328523628,1717486245166,-157.35498634,0.000299,7]
[328523630,1717486245175,-157.35498634,0.000299,7]
[328523632,1717486245184,-157.35498634,0.000299,7]
[328523634,1717486245193,-157.35498634,0.000299,7]
[328523636,1717486245202,-157.35498634,0.000299,7]
[328523638,1717486245212,-157.35498634,0.000299,7]
[328523640,1717486245221,-157.35498634,0.000299,7]
[328523643,1717486245231,-157.85,0.000299,7]
[328523645,1717486245241,-251.84297815,0.000299,7]
[328523646,1717486245250,-251.84297815,0.000299,7]
[328523648,1717486245260,-251.84297815,0.000299,7]
[328523650,1717486245269,-251.84297815,0.000299,7]
[328523653,1717486245279,-251.84297815,0.000299,7]
[328523655,1717486245288,-251.84297815,0.000299,7]
[328523657,1717486245297,-251.84297815,0.000299,7]
[328523658,1717486245306,-251.84297815,0.000299,7]
[328523660,1717486245315,-251.84297815,0.000299,7]
[328523662,1717486245325,-251.84297815,0.000299,7]
[328523665,1717486245335,-251.84297815,0.000299,7]
[328523666,1717486245344,-251.84297815,0.000299,7]
[328523669,1717486245353,-251.84297815,0.000299,7]
[328523671,1717486245364,-251.84297815,0.000299,7]
[328523673,1717486245373,-251.84297815,0.000299,7]
[328523674,1717486245382,-251.84297815,0.000299,7]
[328523676,1717486245392,-251.84297815,0.000299,7]
[328523679,1717486245403,-251.84297815,0.000299,7]
[328523681,1717486245413,-251.84297815,0.000299,7]
[328523683,1717486245423,-252.34,0.000299,7]
[328523685,1717486245432,-2891.88552023,0.000299,2]
[328523687,1717486245442,-3527.13088385,0.000299,2]
[328523689,1717486245450,-1677.89545698,0.000299,2]
[328523691,1717486245460,-161.92662217,0.00029914,2]
[328523692,1717486245469,-150.0,0.00029926,2]
[328523695,1717486245479,-150.0,0.00029941,2]
[328523697,1717486245488,-161.92662217,0.00029943,2]
[328523699,1717486245498,-150.0,0.00029944,2]
[328523701,1717486245507,-152.64120797,0.00029964,2]
[328523703,1717486245516,-152.64120797,0.00029968,2]
[328523705,1717486245526,-179.52164024,0.00029969,2]
[328523706,1717486245535,-366.55,0.0002997,15]
[328523708,1717486245544,-150.0,0.0002997,2]
[328523710,1717486245554,-313.35923365,0.00029972,2]
[328523712,1717486245564,-152.64120797,0.00029974,2]
[328523714,1717486245573,-500.0,0.00029978,6]
[328523716,1717486245582,-500.0,0.00029978,2]
[328523718,1717486245591,-500.0,0.00029978,6]
[328523721,1717486245601,-500.0,0.00029978,6]
[328523723,1717486245611,-500.0,0.00029978,6]
[328523726,1717486245621,-96.5100131,0.00029978,6]
[328523731,1717486245639,-457.29170079,0.00029978,6]
[328523755,1717486246167,-1260.44934067,0.00012674,2]
[328523756,1717486246177,-500.0,0.00029589,6]
[328523757,1717486246186,-1454.89,0.00029978,6]
[328523758,1717486246196,-611.66,0.00029978,6]
[328523759,1717486246206,-3616.18,0.00029978,6]
[328523760,1717486246216,-904.55,0.00029978,6]
[328523761,1717486246226,-500.0,0.00029978,6]
[328523762,1717486246236,-500.0,0.00029978,6]
[328523763,1717486246245,-661.74,0.00029978,6]
[328523764,1717486246254,-847.87,0.00029978,6]
[328523765,1717486246263,-500.0,0.00029978,6]
[328523766,1717486246273,-500.0,0.00029978,6]
[328523768,1717486246282,-500.0,0.00029978,6]
[328523770,1717486246291,-626.64,0.00029978,6]
[328523772,1717486246300,-3252.92,0.00029978,6]
[328523774,1717486246309,-1207.69,0.00029978,6]
[328523775,1717486246318,-500.0,0.00029978,6]
[328523776,1717486246327,-875.82,0.00029978,6]
[328523777,1717486246337,-500.0,0.00029978,6]
[328523778,1717486246346,-500.0,0.00029978,6]
[328523779,1717486246355,-1623.27,0.00029978,6]
[328523780,1717486246364,-3455.44,0.00029978,6]
[328523781,1717486246374,-552.41,0.00029978,6]
[328523782,1717486246383,-500.0,0.00029979,6]
[328523783,1717486246392,-49437.4805253,0.00029979,2]
[328523784,1717486246402,-45046.1611373,0.00029979,2]
[328523785,1717486246411,-40654.8417494,0.00029979,2]
[328523786,1717486246420,-25708.55701269,0.00029979,2]
[328523787,1717486247126,-10554.96534881,0.00029979,2]
[328523788,1717486247136,-4441.4250163,0.00029979,2]
[328523789,1717486247149,-27430.7779573,0.00029979,2]
[328523790,1717486247159,-153.92904355,0.00029979,2]
[328523791,1717486247168,-151.0,0.00029979,7]
[328523792,1717486247178,-1454.89,0.00029979,6]
[328523793,1717486247188,-151.0,0.00029979,7]
[328523795,1717486247197,-611.66,0.00029979,6]
[328523797,1717486247207,-3616.18,0.00029979,6]
[328523799,1717486247216,-500.0,0.00029979,6]
[328523801,1717486247225,-500.0,0.00029979,6]
[328523803,1717486247234,-244.11586915,0.00029979,6]
[328523804,1717486247309,-519.73739182,0.00019078,2]
[328523805,1717486247328,-270.04259709,0.00018717,2]
[328523806,1717486247339,-892.19844599,0.00018717,2]
[328523807,1717486247746,-552.33090042,0.00018717,2]
[328523808,1717486247758,-3205.68886167,0.00018717,2]
[328523809,1717486247770,-356.19588052,0.00018717,2]
[328523810,1717486247782,-2654.72704819,0.00018717,2]
[328523811,1717486247797,-1509.61701147,0.00018717,2]
[328523812,1717486247849,-28708.12325465,0.00018717,2]
[328523813,1717486247858,-343.69060818,0.00019078,2]
[328523814,1717486247867,-4972.45,0.00025016,2]
[328523815,1717486247877,-267.08,0.00029579,10]
[328523816,1717486247886,-488.55474921,0.00029588,2]
[328523817,1717486247896,-456.0,0.00029979,5]
[328523818,1717486247905,-417.62413085,0.00029979,6]
[328523819,1717486247914,-847.87,0.00029979,6]
[328523820,1717486247924,-2097.5504906,0.00029979,2]
[328523821,1717486247934,-1776.9396039,0.00029979,2]
[328523822,1717486247943,-1456.3287171,0.00029979,2]
[328523823,1717486247953,-1135.7178304,0.00029979,2]
[328523824,1717486247962,-815.1069437,0.00029979,2]
[328523825,1717486247971,-500.0,0.00029979,6]
[328523826,1717486247981,-500.0,0.00029979,6]
[328523827,1717486247990,-6972.3672682,0.00029979,2]
[328523828,1717486247999,-5906.6399532,0.00029979,2]
[328523829,1717486248009,-4840.9126382,0.00029979,2]
[328523830,1717486248018,-3775.1853233,0.00029979,2]
[328523831,1717486248028,-2709.4580083,0.00029979,2]
[328523832,1717486248037,-500.0,0.00029979,6]
[328523833,1717486248047,-626.64,0.00029979,6]
[328523834,1717486248056,-3252.92,0.00029979,6]
[328523835,1717486248066,-1207.69,0.00029979,6]
[328523836,1717486248075,-465.83,0.00029979,6]
[328523837,1717486248084,-151.0,0.00029979,7]
[328523838,1717486248093,-875.82,0.00029979,6]
[328523839,1717486248103,-500.0,0.00029979,6]
[328523840,1717486248112,-1623.27,0.00029979,6]
[328523841,1717486248121,-151.0,0.00029979,7]
[328523842,1717486248131,-552.41,0.00029979,6]
[328523843,1717486248140,-103292.24119072,0.0002998,7]
[328523844,1717486248150,-364.0,0.0002998,15]
[328523845,1717486248159,-152.64120797,0.0002999,2]
[328523846,1717486248169,-262.49567054,0.00029995,2]
[328523847,1717486248178,-153.7783359,0.00029996,2]
[328523848,1717486248188,-164.76438699,0.00029996,2]
[328523849,1717486248197,-302.01310266,0.00029996,2]
[328523850,1717486248206,-500.0,0.00029997,6]
[328523851,1717486248215,-1454.89,0.00029997,6]
[328523852,1717486248225,-611.66,0.00029997,6]
[328523853,1717486248235,-3616.18,0.00029997,6]
[328523854,1717486248244,-904.55,0.00029997,6]
[328523855,1717486248253,-500.0,0.00029997,6]
[328523856,1717486248262,-500.0,0.00029997,6]
[328523857,1717486248272,-661.74,0.00029997,6]
[328523858,1717486248281,-847.87,0.00029997,6]
[328523859,1717486248291,-500.0,0.00029997,6]
[328523860,1717486248300,-500.0,0.00029997,6]
[328523861,1717486248310,-500.0,0.00029997,6]
[328523862,1717486248319,-3252.92,0.00029997,6]
[328523863,1717486248328,-1207.69,0.00029997,6]
[328523864,1717486248338,-875.82,0.00029997,6]
[328523865,1717486248348,-500.0,0.00029997,6]
[328523866,1717486248358,-500.0,0.00029997,6]
[328523867,1717486248367,-1623.27,0.00029997,6]
[328523868,1717486248376,-3455.44,0.00029997,6]
[328523869,1717486248386,-552.41,0.00029997,6]
[328523870,1717486248396,-2114.09171862,0.00029997,2]
[328523871,1717486248405,-155.40277861,0.00029998,2]
[328523872,1717486248416,-155.87030942,0.00029998,2]
[328523873,1717486248425,-156.08892722,0.00029998,2]
[328523874,1717486248434,-159.06838526,0.00029998,2]
[328523875,1717486248444,-212.1908023,0.00029998,2]
[328523876,1717486248453,-241.57981572,0.00029998,2]
[328523877,1717486248462,-19118.65660328,0.00029998,2]
[328523878,1717486248471,-155.0,0.00029998,2]
[328523879,1717486248481,-217.94215905,0.00029998,2]
[328523880,1717486248491,-155.0,0.00029998,2]
[328523881,1717486248500,-37318.3097117,0.00029998,2]
[328523882,1717486248510,-1185.62029144,0.00029998,2]
[328523883,1717486248519,-234.70114228,0.00029998,2]
[328523884,1717486248528,-422.88216961,0.00029998,2]
[328523885,1717486248537,-618.8768531,0.00029998,2]
[328523886,1717486248547,-200.0,0.00029998,2]
[328523887,1717486248556,-216.99201886,0.00029998,2]
[328523888,1717486248566,-489.81743088,0.00029998,2]
[328523889,1717486248575,-155.55420671,0.00029998,2]
[328523890,1717486248585,-1239.61684433,0.00029998,2]
[328523891,1717486248595,-450.90210314,0.00029998,2]
[328523892,1717486248604,-33661.71253866,0.00029998,2]
[328523893,1717486248614,-411.16095041,0.00029998,2]
[328523894,1717486248624,-650.68916729,0.00029998,2]
[328523895,1717486248634,-155.46099837,0.00029998,2]
[328523896,1717486248643,-3888.23499441,0.00029998,2]
[328523897,1717486248654,-160.46643036,0.00029998,2]
[328523898,1717486248663,-226.95765695,0.00029998,2]
[328523899,1717486248677,-155.62703191,0.00029998,2]
[328523900,1717486248686,-1779.87235949,0.00029998,2]
[328523901,1717486248696,-250.16779992,0.00029998,2]
[328523902,1717486248705,-634.79727153,0.00029998,2]
[328523903,1717486248716,-156.36523617,0.00029998,2]
[328523904,1717486248726,-298.05034707,0.00029998,2]
[328523905,1717486248735,-6251.81374662,0.00029998,2]
[328523906,1717486248747,-305.45197488,0.00029998,2]
[328523907,1717486248757,-155.0,0.00029998,2]
[328523908,1717486248767,-155.46593818,0.00029998,2]
[328523909,1717486248777,-7600.0,0.00029998,2]
[328523910,1717486248786,-9012.30067209,0.00029998,2]
[328523911,1717486248796,-155.99758116,0.00029998,2]
[328523913,1717486248805,-403.42300542,0.00029998,2]
[328523914,1717486248816,-789.19827628,0.00029998,2]
[328523915,1717486248825,-6209.0035877,0.00029998,2]
[328523917,1717486248835,-4163.8478063,0.00029998,2]
[328523918,1717486248844,-500.0,0.00029998,6]
[328523919,1717486248854,-151.0,0.00029998,7]
[328523920,1717486248863,-1454.89,0.00029998,6]
[328523921,1717486248872,-232.14852,0.00029998,7]
[328523922,1717486248881,-611.66,0.00029998,6]
[328523923,1717486248891,-3616.18,0.00029998,6]
[328523924,1717486248901,-904.55,0.00029998,6]
[328523925,1717486248911,-500.0,0.00029998,6]
[328523926,1717486248921,-500.0,0.00029998,6]
[328523927,1717486248930,-661.74,0.00029998,6]
[328523928,1717486248940,-847.87,0.00029998,6]
[328523929,1717486248949,-500.0,0.00029998,6]
[328523930,1717486248958,-500.0,0.00029998,6]
[328523931,1717486248968,-500.0,0.00029998,6]
[328523932,1717486248977,-3252.92,0.00029998,6]
[328523933,1717486248986,-1207.69,0.00029998,6]
[328523934,1717486248996,-875.82,0.00029998,6]
[328523935,1717486249006,-500.0,0.00029998,6]
[328523936,1717486249015,-500.0,0.00029998,6]
[328523937,1717486249024,-1623.27,0.00029998,6]
[328523938,1717486249034,-3455.44,0.00029998,6]
[328523939,1717486249043,-552.41,0.00029998,6]
[328523940,1717486249052,-9137.0,0.00029998,2]
[328523941,1717486249061,-368.89779456,0.00029999,2]
[328523942,1717486249070,-74305.54227389,0.00029999,2]
[328523943,1717486249080,-500.0,0.00029999,6]
[328523944,1717486249090,-313.66246039,0.00029999,6]
[328523945,1717486249100,-263.9581512,0.00029999,6]
[328523946,1717486249109,-1454.89,0.00029999,6]
[328523947,1717486249119,-1454.89,0.00029999,6]
[328523948,1717486249128,-1454.89,0.00029999,6]
[328523949,1717486249138,-1454.89,0.00029999,6]
[328523950,1717486249148,-1454.89,0.00029999,6]
[328523951,1717486249157,-1454.89,0.00029999,6]
[328523952,1717486249168,-1454.89,0.00029999,6]
[328523953,1717486249178,-1454.89,0.00029999,6]
[328523954,1717486249187,-1455.0684,0.00029999,6]
[328523955,1717486249197,-611.66,0.00029999,6]
[328523956,1717486249207,-611.66,0.00029999,6]
[328523957,1717486249216,-611.66,0.00029999,6]
[328523958,1717486249226,-611.66,0.00029999,6]
[328523959,1717486249235,-611.66,0.00029999,6]
[328523960,1717486249245,-611.66,0.00029999,6]
[328523961,1717486249255,-611.66,0.00029999,6]
[328523962,1717486249264,-611.66,0.00029999,6]
[328523963,1717486249273,-611.78550872,0.00029999,6]
[328523964,1717486249283,-3616.18,0.00029999,6]
[328523965,1717486249292,-3616.18,0.00029999,6]
[328523966,1717486249302,-3616.18,0.00029999,6]
[328523967,1717486249311,-3616.18,0.00029999,6]
[328523968,1717486249320,-3616.18,0.00029999,6]
[328523969,1717486249330,-3616.18,0.00029999,6]
[328523970,1717486249339,-3616.18,0.00029999,6]
[328523971,1717486249348,-3616.18,0.00029999,6]
[328523972,1717486249358,-3616.241,0.00029999,6]
[328523973,1717486249367,-904.55,0.00029999,6]
[328523974,1717486249377,-904.55,0.00029999,6]
[328523975,1717486249387,-904.55,0.00029999,6]
[328523976,1717486249397,-904.55,0.00029999,6]
[328523977,1717486249406,-904.55,0.00029999,6]
[328523978,1717486249415,-904.55,0.00029999,6]
[328523979,1717486249425,-904.55,0.00029999,6]
[328523980,1717486249434,-904.55,0.00029999,6]
[328523981,1717486249444,-904.77057977,0.00029999,6]
[328523982,1717486249454,-500.0,0.00029999,6]
[328523983,1717486249464,-500.0,0.00029999,6]
[328523984,1717486249473,-500.0,0.00029999,6]
[328523985,1717486249482,-500.0,0.00029999,6]
[328523986,1717486249493,-500.0,0.00029999,6]
[328523987,1717486249503,-164.26,0.00029999,6]
[328523988,1717486249512,-500.0,0.00029999,6]
[328523989,1717486249522,-500.0,0.00029999,6]
[328523990,1717486249532,-362.07586034,0.00029999,6]
[328523991,1717486249541,-661.74,0.00029999,6]
[328523992,1717486249551,-661.74,0.00029999,6]
[328523993,1717486249561,-661.74,0.00029999,6]
[328523994,1717486249571,-661.74,0.00029999,6]
[328523995,1717486249580,-661.74,0.00029999,6]
[328523996,1717486249590,-661.74,0.00029999,6]
[328523997,1717486249600,-661.74,0.00029999,6]
[328523998,1717486249610,-661.92550066,0.00029999,6]
[328523999,1717486249619,-847.87,0.00029999,6]
[328524000,1717486249629,-847.87,0.00029999,6]
[328524001,1717486249638,-847.87,0.00029999,6]
[328524002,1717486249648,-847.87,0.00029999,6]
[328524003,1717486249657,-847.87,0.00029999,6]
[328524004,1717486249669,-847.87,0.00029999,6]
[328524005,1717486249679,-847.87,0.00029999,6]
[328524006,1717486249689,-847.87,0.00029999,6]
[328524007,1717486249698,-847.93,0.00029999,6]
[328524008,1717486249707,-500.0,0.00029999,6]
[328524009,1717486249716,-500.0,0.00029999,6]
[328524010,1717486249724,-500.0,0.00029999,6]
[328524011,1717486249734,-500.0,0.00029999,6]
[328524012,1717486249743,-500.0,0.00029999,6]
[328524013,1717486249752,-436.11,0.00029999,6]
[328524014,1717486249762,-500.0,0.00029999,6]
[328524015,1717486249771,-500.0,0.00029999,6]
[328524016,1717486249780,-277.85999343,0.00029999,6]
[328524017,1717486249789,-500.0,0.00029999,6]
[328524018,1717486249799,-626.64,0.00029999,6]
[328524019,1717486249808,-500.0,0.00029999,6]
[328524020,1717486249817,-626.64,0.00029999,6]
[328524021,1717486249957,-626.64,0.00029999,6]
[328524022,1717486249967,-575.65,0.00029999,6]
[328524023,1717486249976,-626.64,0.00029999,6]
[328524024,1717486249986,-626.64,0.00029999,6]
[328524025,1717486249995,-626.64,0.00029999,6]
[328524026,1717486250004,-3252.92,0.00029999,6]
[328524027,1717486250013,-626.64,0.00029999,6]
[328524028,1717486250022,-3252.92,0.00029999,6]
[328524029,1717486250031,-626.64,0.00029999,6]
[328524030,1717486250040,-3252.92,0.00029999,6]
[328524031,1717486250050,-626.64,0.00029999,6]
[328524032,1717486250059,-3252.92,0.00029999,6]
[328524033,1717486250068,-626.64,0.00029999,6]
[328524034,1717486250077,-3252.92,0.00029999,6]
[328524035,1717486250086,-626.64,0.00029999,6]
[328524036,1717486250096,-3252.92,0.00029999,6]
[328524037,1717486250105,-626.64,0.00029999,6]
[328524038,1717486250114,-3252.92,0.00029999,6]
[328524039,1717486250123,-626.64,0.00029999,6]
[328524040,1717486250132,-626.83,0.00029999,6]
[328524041,1717486250142,-3253.1253,0.00029999,6]
[328524042,1717486250152,-1207.69,0.00029999,6]
[328524043,1717486250162,-1207.69,0.00029999,6]
[328524044,1717486250171,-1207.69,0.00029999,6]
[328524045,1717486250182,-1207.69,0.00029999,6]
[328524046,1717486250191,-1207.69,0.00029999,6]
[328524047,1717486250201,-1207.69,0.00029999,6]
[328524048,1717486250210,-1207.69,0.00029999,6]
[328524049,1717486250219,-1207.69,0.00029999,6]
[328524050,1717486250229,-1207.82203052,0.00029999,6]